Cogmind - Beta 14 @@@ ROGUE MODE // 2024.11.20 @ 22:08:41 Player: tarun Result: Destroyed by D-53 Grenadier with Mini Grenade Launcher Performance ------------- Evolutions (0) 0 Regions Visited (2) 400 Robots Destroyed (22) 110 Value Destroyed (460) 460 Prototype IDs (0) 0 Alien Tech Used (0) 0 Bonus (8) 8 TOTAL SCORE: 978 Bonus ------- High Alert Combat Kills 8 Cogmind --------- Core Integrity 0/250 Matter 255/300 Energy 99/100 System Corruption 9% Temperature Warm (135) Movement Core (150) Ox2 Location -10/Mines Parts ------- > --- POWER (1) -------- (None) > --- PROPULSION (2) --- (None) > --- UTILITY (2) ------ Small Storage Unit Structural Scanner > --- WEAPON (2) ------- Mini Grenade Launcher > --- INVENTORY (8) ---- Light Ion Engine Aluminum Leg Aluminum Leg Heat Sink Large Storage Unit Particle Gun Mini Grenade Launcher Peak State ------------ > --- POWER ------------ Ion Engine > --- PROPULSION ------- Aluminum Leg Aluminum Leg > --- UTILITY ---------- Small Storage Unit Structural Scanner > --- WEAPON ----------- Mini Grenade Launcher Mini Grenade Launcher > --- INVENTORY -------- Light Ion Engine Aluminum Leg Aluminum Leg Aluminum Leg Heat Sink Large Storage Unit Particle Gun Particle Gun [Rating: 10] Favorites ----------- Power Light Ion Engine Engine Light Ion Engine Propulsion Aluminum Leg Leg Aluminum Leg Utility Small Storage Unit Device Structural Scanner Storage Small Storage Unit Weapon EM Pulse Gun Energy Gun EM Pulse Gun Ballistic Gun Light Assault Rifle Launcher Mini Grenade Launcher Build | -11 -10 -10 ------- Run | Yrd Mat Min Slots Evolved . | . . . Power . | . . . Propulsion . | . . . Utility . | . . . Weapon . | . . . Parts Attached 21 | 6 12 3 Power 3 | 1 2 . Engine 3 | 1 2 . Core . | . . . Reactor . | . . . Propulsion 5 | 2 3 . Treads . | . . . Leg 5 | 2 3 . Wheel . | . . . Hover . | . . . Flight . | . . . Utility 5 | 1 4 . Device 2 | . 2 . Storage 3 | 1 2 . Processor . | . . . Hackware . | . . . Protection . | . . . Artifact . | . . . Weapon 8 | 2 3 3 Energy Gun 3 | 1 1 1 Energy Cannon . | . . . Ballistic Gun 1 | 1 . . Ballistic Cannon . | . . . Launcher 4 | . 2 2 Special Weapon . | . . . Impact Weapon . | . . . Slashing Weapon . | . . . Piercing Weapon . | . . . Special Melee Weapon . | . . . Unidentified Prototypes . | . . . Parts Lost 11 | . 6 5 Power 3 | . 2 1 Propulsion 4 | . 2 2 Utility . | . . . Weapon 4 | . 2 2 Highest Loss Streak 5 | . 5 5 To Critical Strikes . | . . . Average Slot Usage (%) 95 | . 95 94 Engine 11 | . 12 11 Leg 26 | . 26 25 Device 13 | . 13 14 Storage 14 | . 14 14 Energy Gun 12 | . 12 11 Ballistic Gun 10 | . 11 . Launcher 4 | . 3 16 Peak Build Rating 10 | 6 10 10 Average Rating 6 | 3 7 9 On Entrance 5 | . 6 10 Naked Turns . | . . . Heaviest Build 15 | 11 14 15 Greatest Support 20 | 20 20 20 Greatest Overweight (x) 3 | . 2 3 Average Overweight (x) . | . . . Largest Inventory Capacity 15 | 8 15 8 Average Capacity 7 | 6 8 8 Most Carried 8 | 4 8 8 Average Carried 5 | 2 5 7 Final Capacity 8 | 8 8 8 Final Carried 8 | 4 8 7 Class Distribution -------------------- 100% | Mutant Dominant Class ---------------- Mutant | -10/Materials Mutant | -10/Mines Resources | -11 -10 -10 ----------- Run | Yrd Mat Min Matter Collected 432 | 173 259 . Remotely 149 | . 149 . Salvage Created 705 | . 661 44 Parts 54 | . 54 . Haulers Intercepted . | . . . Recyclers Shooed . | . . . Parts Field Recycled . | . . . Retrieved Matter . | . . . Parts Self-Destructed . | . . . Prevented . | . . . Kills | -11 -10 -10 ------- Run | Yrd Mat Min Combat Hostiles Destroyed 18 | . 12 6 Guns 9 | . 8 1 AOE 9 | . 4 5 Classes Destroyed 8 | . 7 1 Builder 4 | . 4 . Tunneler 2 | . 2 . Recycler 1 | . 1 . Operator 1 | . 1 . Watcher 2 | . 2 . Swarmer 3 | . 3 . Grunt 9 | . 9 . Assembled 6 | . . 6 Best Kill Streak 7 | . 7 6 Combat Bots Only 6 | . 5 6 Max Kills in Single Turn 3 | . 3 3 Gunslinging 1 | . 1 . Exploded 3 | . 2 3 Melee . | . . . Uniques/NPCs Destroyed . | . . . Combat | -11 -10 -10 -------- Run | Yrd Mat Min Hostile Shots Fired 107 | . 82 25 Missed 29 | . 24 5 Damage Taken 1226 | . 712 514 Core 254 | . 184 70 Absorbed by Shields . | . . . Core Remaining (%) 100 | 100 . . Volleys Fired 60 | . 50 10 Largest 2 | . 2 2 Hottest 95 | . 70 95 Shots Fired 114 | . 100 14 Gun 108 | . 98 10 Cannon . | . . . Launcher 6 | . 2 4 Special . | . . . Kinetic 48 | . 48 . Thermal 10 | . . 10 Explosive 6 | . 2 4 Electromagnetic 50 | . 50 . Robot Hit Streak 12 | . 12 4 Robot Miss Streak 4 | . 4 3 Penetration Max . | . . . Secondary Targets 3 | . 3 . Max Gunslinging Chain 1 | . 1 . Shots Hit Robots 69 | . 62 7 Core Hits 43 | . 34 9 Critical Kills . | . . . Critical Parts Destroyed . | . . . Critical Strikes 1 | . . 1 Burn 1 | . . 1 Melee Attacks . | . . . Impact . | . . . Slashing . | . . . Piercing . | . . . Sneak Attacks . | . . . Combat Hostiles . | . . . Follow-up Attacks . | . . . Damage Inflicted 1726 | . 1267 459 Guns 788 | . 678 110 Cannons . | . . . Explosions 938 | . 589 349 Melee . | . . . Ramming . | . . . Kinetic 242 | . 242 . Thermal 460 | . 350 110 Explosive 588 | . 239 349 Electromagnetic 436 | . 436 . Impact . | . . . Slashing . | . . . Piercing . | . . . Highest Corruption 9 | . . 9 Average Corruption 8 | . . 8 Corruption Purged . | . . . Corruption Blocked . | . . . Overload Shots . | . . . Overflow Damage 25 | . 14 11 Projectiles . | . . . Explosions 25 | . 14 11 Melee . | . . . Knockbacks . | . . . Impact . | . . . Kinetic . | . . . Secondary . | . . . Self-Inflicted Damage 117 | . 42 75 Shots 4 | . 1 3 Rammed . | . . . Targets Rammed . | . . . Kicked . | . . . Crushed . | . . . Highest Temperature 214 | . 167 214 Average Temperature 69 | . 55 135 Received Heat Transfer 366 | . 306 60 Siege Activations . | . . . Robots Corrupted . | . . . Combat Hostiles . | . . . Parts Fried . | . . . Impact Corruptions . | . . . Robots Melted . | . . . Combat Hostiles . | . . . Parts Melted . | . . . Heat Transferred 833 | . 500 333 Parts Sabotaged . | . . . Parts Stolen . | . . . Parts Stripped . | . . . Power Chain Reactions 3 | . 3 . Alert | -11 -10 -10 ------- Run | Yrd Mat Min Peak Influence 405 | . 405 117 Initial 94 | . . 94 Average 148 | . 170 98 Maximum Alert Level 2 | . 2 . Low Security (%) 64 | 100 57 100 Level 1 33 | . 40 . Level 2 1 | . 2 . Level 3 . | . . . Level 4 . | . . . Level 5 . | . . . High Security . | . . . Max Security . | . . . Squads Dispatched 2 | . 2 . Investigation 1 | . 1 . Extermination . | . . . Reinforcement 1 | . 1 . Assault . | . . . Garrison . | . . . Intercept . | . . . Searches Triggered . | . . . Construction Impeded . | . . . Haulers Reinforced . | . . . Active Scanning Responses . | . . . Cargo Convoy Interrupts . | . . . Stealth | -11 -10 -10 --------- Run | Yrd Mat Min Distress Signals 1 | . 1 . Communications Jammed . | . . . Distress Signals . | . . . Times Spotted 33 | . 19 14 Peak Tracking Total 9 | . 4 9 Tactical Retreats 1 | . 1 . Traps | -11 -10 -10 ------- Run | Yrd Mat Min Traps Triggered 1 | . 1 . Indirectly . | . . . Trap Hack Attempts . | . . . Triggered . | . . . Disarmed . | . . . Reprogrammed . | . . . Reused . | . . . Traps Extracted . | . . . Installed . | . . . Triggered . | . . . Machines | -11 -10 -10 ---------- Run | Yrd Mat Min Machines Disabled 1 | . 1 . Max in Single Turn 1 | . 1 . Machines Repaired . | . . . Machines Dismantled . | . . . Machines Sabotaged . | . . . Overloaded Fab Kills . | . . . Hacking | -11 -10 -10 --------- Run | Yrd Mat Min Machines Accessed 1 | . 1 . Terminals 1 | . 1 . Fabricators . | . . . Repair Stations . | . . . Recycling Units . | . . . Scanalyzers . | . . . Garrison Access . | . . . Total Hacks 4 | . 4 . Successful 1 | . 1 . Failed 3 | . 3 . Catastrophic 2 | . 2 . Database Lockouts . | . . . Manual . | . . . Terminals 4 | . 4 . Fabricators . | . . . Repair Stations . | . . . Recycling Units . | . . . Scanalyzers . | . . . Garrison Access . | . . . Terminal Hacks 1 | . 1 . Robot Analysis 1 | . 1 . Fabricator Hacks . | . . . Repair Station Hacks . | . . . Recycling Unit Hacks . | . . . Scanalyzer . | . . . Garrison Access Hacks . | . . . Unauthorized Hacks . | . . . Terminals . | . . . Fabricators . | . . . Repair Stations . | . . . Recycling Units . | . . . Scanalyzers . | . . . Garrison Access . | . . . Data Cores Recovered . | . . . Used . | . . . Hacking Detections 1 | . 1 . Full Trace Events 1 | . 1 . Feedback Events . | . . . Feedback Blocked . | . . . Robot Schematics Acquired . | . . . Robots Built . | . . . Authchips . | . . . Time . | . . . Total Robot Build Rating . | . . . Part Schematics Acquired . | . . . Parts Built . | . . . Authchips . | . . . Time . | . . . Total Part Build Rating . | . . . Parts Repaired . | . . . Time . | . . . Parts Recycled . | . . . Recycled Matter . | . . . Retrieved Matter . | . . . Retrieved Components . | . . . Parts Scanalyzed . | . . . Part Schematics Acquired . | . . . Parts Damaged . | . . . Bothacking | -11 -10 -10 ------------ Run | Yrd Mat Min Used RIF Installer . | . . . Robots Hacked . | . . . Non-combat . | . . . Combat . | . . . Robot Hacks Applied . | . . . Relay Couplers Released . | . . . Fabnet Peak Effective % . | . . . Robots Rewired . | . . . Allies Hacked . | . . . Hacks Repelled . | . . . Allies | -11 -10 -10 -------- Run | Yrd Mat Min Total Allies . | . . . Largest Group . | . . . Highest-Rated Group . | . . . Highest-Rated Ally . | . . . Total Orders . | . . . Ally Attacks . | . . . Total Damage . | . . . Kills . | . . . Allies Corrupted . | . . . Allies Melted . | . . . Intel | -11 -10 -10 ------- Run | Yrd Mat Min Robot Analysis Total 1 | . 1 . Derelict Logs Recovered . | . . . Drone Launches . | . . . Drone Recoveries . | . . . Exploration | -11 -10 -10 ------------- Run | Yrd Mat Min Turns Passed 611 | 61 507 43 Spaces Moved 327 | 42 272 13 Core 9 | 7 1 1 Treads . | . . . Legs 318 | 35 271 12 Wheels . | . . . Hover . | . . . Flight . | . . . Fastest Speed 50 | 50 120 120 Average Speed 118 | 108 120 126 Slowest Speed 200 | 120 150 200 Overloaded Moves . | . . . Propulsion Burnouts . | . . . Robots Hopped . | . . . Cave-ins Triggered . | . . . Exploration Rate (%) 17 | 3 39 10 Regions Visited 2 Branch Regions 1 Pre-discovered Areas . | . . . Known Exits Taken . | . . . Unknown Exits Taken 2 | 1 1 . Scrap Searched . | . . . Spaces Dug . | . . . Terrain Destroyed 71 | . 24 47 Melee . | . . . Projectile . | . . . AOE 71 | . 24 47 Terrain Rammed . | . . . Walls Destroyed . | . . . Machines Disabled . | . . . Actions | -11 -10 -10 --------- Run | Yrd Mat Min Total 447 | 57 364 26 Wait 3 | . 3 . Move 325 | 41 271 13 Hop . | . . . Pick Up 29 | 10 19 . Fast Attach 1 | . 1 . Attach 15 | 6 8 1 Detach . | . . . Swap 5 | . 3 2 Drop 9 | . 9 . Fire 60 | . 50 10 Melee . | . . . Ram . | . . . Kick . | . . . Crush . | . . . Escape Stasis . | . . . Rewire . | . . . Trap . | . . . Miscellaneous . | . . . Route ------- -11/Scrapyard -10/Materials (discovered 2 exits: [*Min x2]) -10/Mines History --------- Turn | Location | Event 9 | -11/Scrapyard | Discovered new exit (range 14) 62 | -11/Scrapyard | Entered Materials 165 | -10/Materials | Discovered new exit (range 15) 328 | -10/Materials | Build established: Mutant 430 | -10/Materials | Core integrity fell below 50% 445 | -10/Materials | Discovered new exit (range 11) 511 | -10/Materials | Lost 5 parts (1p2n2w) 569 | -10/Materials | Entered Mines 570 | -10/Mines | Assembled infested the area 603 | -10/Mines | Core integrity fell below 20% 612 | -10/Mines | Destroyed by D-53 Grenadier with Mini Grenade Launcher Last Messages --------------- 00602_ Ion Engine destroyed. 00602_ System corrupted by crushing effect (+5). 00602_ Knocked back. 00602_ as-03586 destroyed. 00602_ Destroyed Asb. Hover Unit. 00602_ as-77508 destroyed. 00602_ as-99142 destroyed. 00603_ C-30 ARC bursts open, deploying its payload. 00603_ D-53 Grenadier unfolds itself. 00604_ as-73755 destroyed. 00604_ as-80904 destroyed. 00604_ Aluminum Leg destroyed. 00606_ as-73659 destroyed. 00606_ as-07118 destroyed. 00608_ as-25769 destroyed. 00610_ Aluminum Leg destroyed. 00611_ The unstable cave ceiling collapses. 00612_ U-05 Engineer lays Concrete. 00612_ Particle Gun destroyed. Map ----- +----------------------------------------------------+ | ?????????????????????????????????????????????????? | | ?????????????????????????????????????????????????? | | ?????????????????????????????????????????????????? | | ?????????????????????????????????????????????????? | | ?????????????????????????????????????????????????? | | ?????????????????????????????????????????????????? | | ?????????????????????????????????????????????????? | | ?????????????????????????????????????????????????? | | ?????????????????????????????????????????????????? | | ?????????????????????????????????????????????????? | | ??????????????????????????? ?????????????????????? | | ??????????????????????????? ?????????????????????? | | ??????????????????????????? ?????????????????????? | | ??????????????????????????? ?????????????????????? | | ?????????????????????????? #????????????????????? | | ?????????????????????????? ##????????????????????? | | ?????????????????????????? ##????????????????????? | | ????????????????#####????? ##????????????????????? | | ???????????????#######???? #### ?????????????????? | | ???????????????### ## ??a#### ?????????????????? | | ??????????????### ##### ?????????????????? | | ?????????????#### #### ????????????????????? | | ???????????##### ##????????????????????? | | ?????????? #### ##????????????????????? | | ?????? ## d ##????????????????????? | | ?????? u % @ ##????????????????????? | | ?????# ###???????????????????? | | ?????## d ####?????????????????? | | ?????## ## ##?????????????????? | | ?????## ?### ###????????????????? | | ???????????????## #### ##???????????? | | ???????????????## ### ##???????????? | | ???????????????## # ##???????????? | | ???????????????### #####???????????? | | ???????????????#### g #####???????????? | | ????????????????######g ####??????????????? | | ?????????????????#####g ####??????????????? | | ????????????????????#### ###????????????????? | | ????????????????????#### #####????????????????? | | ??????????????????????### #####?????????????????? | | ??????????????????????########???????????????????? | | ???????????????????????#####?????????????????????? | | ?????????????????????????????????????????????????? | | | | | | | | | | | | | | | +----------------------------------------------------+ Best States ------------- Heat Dissipation 25 Energy Generation 10 Energy Capacity 250 Matter Stores 300 Matter Capacity 300 Sight Range 16 Terrain Scan Density 10 Evasion (%) 55 Item Schematics ----------------- None Robot Schematics ------------------ None Fabricated ------------ Nothing Alien Tech Used ----------------- None Achievements -------------- Crack Shot Use The Force Challenges ------------ None Game ------ Seed TerrainWardroneCleaver Manual? 0 Play Time 00:14:55 Cumulative 2.2 hours Start 2024.11.20 @ 21:54:22 End 2024.11.20 @ 22:08:41 Sessions 1 Manual Loads 0 Difficulty Rogue Special Mode None Game No. 4 Rogue 4 Adventurer 0 Explorer 0 Win Type - Total 0 Types 0/0/0/0/0/0/0/0/0 Lore% 1 Gallery% 3 Achievement% 4 Wizard Run 0 Options --------- Layout 1 ASCII 0 Keyboard 0 Movement Mouse Keybinds 0 Fullscreen 1 Font 24/Terminus Map View 50x35 Zoom Use 0% Tactical HUD 1 Map Filters NONE Filters NONE Steam 0 RUN: dfc38bd7-c511-4eb7-9ded-72f2424b1926